[Event "Djerba Festival Blitz 2025"]
[Site "Djerba"]
[Date "2025.02.21"]
[Round "3.1"]
[White "Bouzidi, Ahmed"]
[Black "Maghsoodloo, Parham"]
[Result "0-1"]
[ECO "B06"]
[WhiteElo "2168"]
[BlackElo "2680"]
[PlyCount "61"]
[EventDate "2025.02.15"]
[EventType "swiss"]
[EventCountry "TUN"]
[TimeControl "180+3"]

1. e4 {[%emt 0:00:03]} g6 {[%emt 0:00:04]} 2. d4 {[%emt 0:00:02]} Bg7 {[%emt 0:00:03]} 3. Nf3 {[%emt 0:00:02]} d6 {[%emt 0:00:04]} 4. Nc3 {[%emt 0:00:04]} a6 {[%emt 0:00:04]} 5. Be3 {[%emt 0:00:02]} Nd7 {[%emt 0:00:07]} 6. Qd2 {[%emt 0:00:02]} b5 {[%emt 0:00:04]} 7. a3 {[%emt 0:00:03]} Bb7 {[%emt 0:00:02]} 8. Be2 {[%emt 0:00:14]} c5 {[%emt 0:00:14]} 9. dxc5 {[%emt 0:00:10]} Nxc5 {[%emt 0:00:03]} 10. Bd4 {[%emt 0:00:10]} Nf6 {[%emt 0:00:08]} 11. e5 {[%emt 0:00:28]} Nfe4 {[%emt 0:00:03]} 12. Nxe4 {[%emt 0:00:10]} Nxe4 {[%emt 0:00:05]} 13. Qe3 {[%emt 0:00:06]} dxe5 {[%emt 0:00:10]} 14. Bxe5 {[%emt 0:00:15]} Bxe5 {[%emt 0:00:03]} 15. Nxe5 {[%emt 0:00:02]} Qc7 {[%emt 0:00:02]} 16. Qf4 {[%emt 0:00:19]} O-O-O {[%emt 0:00:31]} 17. Nd3 {[%emt 0:01:11]} Qxf4 {[%emt 0:00:07]} 18. Nxf4 {[%emt 0:00:02]} Rd4 {[%emt 0:00:03]} 19. Nd3 {[%emt 0:00:11]} Rhd8 {[%emt 0:00:05]} 20. O-O-O {[%emt 0:00:13]} Nd6 {[%emt 0:00:15]} 21. Ne5 {[%emt 0:00:06]} Rxd1+ {[%emt 0:00:10]} 22. Rxd1 {[%emt 0:00:01]} Bxg2 {[%emt 0:00:10]} 23. f3 {[%emt 0:00:16]} Kc7 {[%emt 0:00:09]} 24. a4 {[%emt 0:00:00]} Bh3 {[%emt 0:00:09]} 25. axb5 {[%emt 0:00:00]} axb5 {[%emt 0:00:02]} 26. Rd5 {[%emt 0:00:00]} f6 {[%emt 0:00:19]} 27. Nd3 {[%emt 0:00:07]} Be6 {[%emt 0:00:03]} 28. Rc5+ {[%emt 0:00:04]} Kb6 {[%emt 0:00:02]} 29. b4 {[%emt 0:00:04]} Nb7 {[%emt 0:00:22]} 30. Rc3 {[%emt 0:00:03]} Rd4 {[%emt 0:00:05]} 31. Bd1 {[%emt 0:00:06]} 0-1

[Event "Djerba Festival Blitz 2025"]
[Site "Djerba"]
[Date "2025.02.21"]
[Round "3.2"]
[White "Moussard, Jules"]
[Black "Amdouni, Zoubaier"]
[Result "1-0"]
[ECO "B31"]
[WhiteElo "2595"]
[BlackElo "2229"]
[PlyCount "81"]
[EventDate "2025.02.15"]
[EventType "swiss"]
[EventCountry "TUN"]
[TimeControl "180+3"]

1. e4 {[%emt 0:00:04]} c5 {[%emt 0:00:03]} 2. Nf3 {[%emt 0:00:02]} Nc6 {[%emt 0:00:02]} 3. Bb5 {[%emt 0:00:03]} g6 {[%emt 0:00:05]} 4. Bxc6 {[%emt 0:00:11]} dxc6 {[%emt 0:00:02]} 5. d3 {[%emt 0:00:02]} Bg7 {[%emt 0:00:03]} 6. O-O {[%emt 0:00:03]} Nf6 {[%emt 0:00:09]} 7. h3 {[%emt 0:00:05]} Nd7 {[%emt 0:00:05]} 8. Nc3 {[%emt 0:00:03]} e5 {[%emt 0:00:01]} 9. Be3 {[%emt 0:00:04]} b6 {[%emt 0:00:03]} 10. Qd2 {[%emt 0:00:03]} h6 {[%emt 0:00:02]} 11. Nh2 {[%emt 0:00:03]} Nf8 {[%emt 0:00:02]} 12. f4 {[%emt 0:00:01]} exf4 {[%emt 0:00:02]} 13. Bxf4 {[%emt 0:00:02]} Ne6 {[%emt 0:00:10]} 14. Be3 {[%emt 0:00:03]} Nd4 {[%emt 0:00:11]} 15. Rae1 {[%emt 0:00:17]} Be6 {[%emt 0:00:06]} 16. b3 {[%emt 0:00:15]} Qd7 {[%emt 0:00:13]} 17. Ne2 {[%emt 0:00:08]} g5 {[%emt 0:00:12]} 18. Nxd4 {[%emt 0:00:05]} cxd4 {[%emt 0:00:09]} 19. Bf2 {[%emt 0:00:01]} O-O-O {[%emt 0:00:12]} 20. Bg3 {[%emt 0:00:04]} h5 {[%emt 0:00:13]} 21. Qxg5 {[%emt 0:00:05]} Rdg8 {[%emt 0:00:17]} 22. Qf4 {[%emt 0:00:11]} Kb7 {[%emt 0:00:06]} 23. Kh1 {[%emt 0:00:14]} Bh6 {[%emt 0:01:00]} 24. Qd6 {[%emt 0:00:04]} Qc8 {[%emt 0:00:09]} 25. Bf4 {[%emt 0:00:03]} Bf8 {[%emt 0:00:07]} 26. Qxd4 {[%emt 0:00:39]} Bc5 {[%emt 0:00:02]} 27. Qe5 {[%emt 0:00:01]} Re8 {[%emt 0:00:11]} 28. Qc3 {[%emt 0:00:15]} a5 {[%emt 0:00:05]} 29. Qd2 {[%emt 0:00:03]} Rhg8 {[%emt 0:00:05]} 30. d4 {[%emt 0:00:05]} Rd8 {[%emt 0:00:04]} 31. c3 {[%emt 0:00:01]} f5 {[%emt 0:00:06]} 32. Qc1 {[%emt 0:00:19]} Bf8 {[%emt 0:00:10]} 33. exf5 {[%emt 0:00:12]} Bd5 {[%emt 0:00:02]} 34. Nf3 {[%emt 0:00:12]} Qxf5 {[%emt 0:00:02]} 35. c4 {[%emt 0:00:02]} Rxg2 {[%emt 0:00:03]} 36. Kxg2 {[%emt 0:00:04]} Ba3 {[%emt 0:00:05]} 37. Qe3 {[%emt 0:00:04]} Rg8+ {[%emt 0:00:01]} 38. Kh2 {[%emt 0:00:05]} Be6 {[%emt 0:00:12]} 39. Ng5 {[%emt 0:00:09]} Rxg5 {[%emt 0:00:03]} 40. Bxg5 {[%emt 0:00:03]} Bd6+ {[%emt 0:00:02]} 41. Bf4 {[%emt 0:00:03]} 1-0

[Event "Djerba Festival Blitz 2025"]
[Site "Djerba"]
[Date "2025.02.21"]
[Round "3.3"]
[White "Maisuradze, Nino"]
[Black "Dardha, Daniel"]
[Result "0-1"]
[ECO "E46"]
[WhiteElo "2174"]
[BlackElo "2652"]
[PlyCount "76"]
[EventDate "2025.02.15"]
[EventType "swiss"]
[EventCountry "TUN"]
[TimeControl "180+3"]

1. d4 {[%emt 0:00:03]} Nf6 {[%emt 0:00:04]} 2. c4 {[%emt 0:00:03]} e6 {[%emt 0:00:03]} 3. Nc3 {[%emt 0:00:05]} Bb4 {[%emt 0:00:02]} 4. e3 {[%emt 0:00:01]} O-O {[%emt 0:00:04]} 5. Nge2 {[%emt 0:00:01]} Re8 {[%emt 0:00:02]} 6. a3 {[%emt 0:00:02]} Bf8 {[%emt 0:00:02]} 7. Ng3 {[%emt 0:00:02]} d5 {[%emt 0:00:03]} 8. Bd3 {[%emt 0:00:07]} a6 {[%emt 0:00:03]} 9. cxd5 {[%emt 0:00:06]} exd5 {[%emt 0:00:02]} 10. O-O {[%emt 0:00:19]} Be6 {[%emt 0:00:03]} 11. b4 {[%emt 0:00:08]} Nc6 {[%emt 0:00:03]} 12. Rb1 {[%emt 0:00:07]} g6 {[%emt 0:00:04]} 13. f4 {[%emt 0:00:16]} Bg7 {[%emt 0:00:12]} 14. f5 {[%emt 0:00:06]} Bd7 {[%emt 0:00:02]} 15. Qf3 {[%emt 0:00:22]} Ne7 {[%emt 0:00:10]} 16. e4 {[%emt 0:00:33]} dxe4 {[%emt 0:00:03]} 17. Ncxe4 {[%emt 0:00:03]} Nxe4 {[%emt 0:00:11]} 18. Bxe4 {[%emt 0:00:03]} Nxf5 {[%emt 0:00:04]} 19. Bxf5 {[%emt 0:00:24]} Bxf5 {[%emt 0:00:05]} 20. Nxf5 {[%emt 0:00:05]} gxf5 {[%emt 0:00:02]} 21. Qxf5 {[%emt 0:00:23]} Qxd4+ {[%emt 0:00:03]} 22. Kh1 {[%emt 0:00:03]} Qf6 {[%emt 0:00:12]} 23. Qd3 {[%emt 0:00:18]} Rad8 {[%emt 0:00:02]} 24. Qc4 {[%emt 0:00:18]} b5 {[%emt 0:00:07]} 25. Bb2 {[%emt 0:00:15]} bxc4 {[%emt 0:00:16]} 26. Bxf6 {[%emt 0:00:02]} Bxf6 {[%emt 0:00:08]} 27. Rxf6 {[%emt 0:00:01]} c3 {[%emt 0:00:02]} 28. Rc6 {[%emt 0:00:03]} Re3 {[%emt 0:00:07]} 29. Rc1 {[%emt 0:00:02]} Rd2 {[%emt 0:00:07]} 30. h3 {[%emt 0:00:04]} Ree2 {[%emt 0:00:03]} 31. Rxc7 {[%emt 0:00:07]} c2 {[%emt 0:00:04]} 32. Kh2 {[%emt 0:00:03]} Rxg2+ {[%emt 0:00:03]} 33. Kh1 {[%emt 0:00:03]} Rge2 {[%emt 0:00:13]} 34. Rc8+ {[%emt 0:00:03]} Kg7 {[%emt 0:00:02]} 35. Rg1+ {[%emt 0:00:02]} Kf6 {[%emt 0:00:02]} 36. Rf1+ {[%emt 0:00:02]} Ke7 {[%emt 0:00:03]} 37. Rc7+ {[%emt 0:00:04]} Kd6 {[%emt 0:00:02]} 38. Rcxf7 {[%emt 0:00:04]} Rh2+ {[%emt 0:00:02]} 0-1

[Event "Djerba Festival Blitz 2025"]
[Site "Djerba"]
[Date "2025.02.21"]
[Round "3.4"]
[White "Edouard, Romain"]
[Black "Pichon, Ewen"]
[Result "1/2-1/2"]
[ECO "A07"]
[WhiteElo "2544"]
[BlackElo "2351"]
[PlyCount "138"]
[EventDate "2025.02.15"]
[EventType "swiss"]
[EventCountry "TUN"]
[TimeControl "180+3"]

1. Nf3 {[%emt 0:00:03]} d5 {[%emt 0:00:03]} 2. g3 {[%emt 0:00:03]} Nf6 {[%emt 0:00:02]} 3. Bg2 {[%emt 0:00:02]} e6 {[%emt 0:00:02]} 4. O-O {[%emt 0:00:03]} Bd6 {[%emt 0:00:02]} 5. d4 {[%emt 0:00:06]} h6 {[%emt 0:00:02]} 6. c4 {[%emt 0:00:05]} O-O {[%emt 0:00:03]} 7. Nc3 {[%emt 0:00:04]} Nc6 {[%emt 0:00:03]} 8. b3 {[%emt 0:00:26]} dxc4 {[%emt 0:00:03]} 9. bxc4 {[%emt 0:00:02]} e5 {[%emt 0:00:02]} 10. d5 {[%emt 0:00:10]} Na5 {[%emt 0:00:02]} 11. Qd3 {[%emt 0:00:18]} Re8 {[%emt 0:00:07]} 12. Nd2 {[%emt 0:00:02]} b6 {[%emt 0:00:05]} 13. Nb3 {[%emt 0:00:07]} Nb7 {[%emt 0:00:13]} 14. e4 {[%emt 0:00:26]} a5 {[%emt 0:00:39]} 15. a4 {[%emt 0:00:33]} Nd7 {[%emt 0:00:02]} 16. f4 {[%emt 0:00:09]} Nbc5 {[%emt 0:00:05]} 17. Nxc5 {[%emt 0:00:02]} Nxc5 {[%emt 0:00:03]} 18. Qc2 {[%emt 0:00:04]} Qe7 {[%emt 0:00:17]} 19. f5 {[%emt 0:00:15]} Qf6 {[%emt 0:00:33]} 20. Be3 {[%emt 0:00:07]} Bd7 {[%emt 0:00:12]} 21. h4 {[%emt 0:00:07]} Na6 {[%emt 0:00:13]} 22. Qf2 {[%emt 0:00:13]} Bc5 {[%emt 0:00:02]} 23. Bxc5 {[%emt 0:00:07]} Nxc5 {[%emt 0:00:02]} 24. g4 {[%emt 0:00:01]} Nd3 {[%emt 0:00:10]} 25. Qg3 {[%emt 0:00:03]} Nf4 {[%emt 0:00:02]} 26. g5 {[%emt 0:00:02]} Qd6 {[%emt 0:00:03]} 27. Kh2 {[%emt 0:00:09]} hxg5 {[%emt 0:00:13]} 28. hxg5 {[%emt 0:00:03]} Kf8 {[%emt 0:00:03]} 29. Rfe1 {[%emt 0:00:31]} Ke7 {[%emt 0:00:03]} 30. Rac1 {[%emt 0:00:02]} Rh8+ {[%emt 0:00:02]} 31. Kg1 {[%emt 0:00:02]} Qc5+ {[%emt 0:00:12]} 32. Qe3 {[%emt 0:00:04]} Nd3 {[%emt 0:00:05]} 33. Qxc5+ {[%emt 0:00:04]} bxc5 {[%emt 0:00:02]} 34. Bf3 {[%emt 0:00:04]} Nxe1 {[%emt 0:00:05]} 35. Rxe1 {[%emt 0:00:01]} Kd6 {[%emt 0:00:02]} 36. Kg2 {[%emt 0:00:04]} Rab8 {[%emt 0:00:01]} 37. Nb5+ {[%emt 0:00:02]} Bxb5 {[%emt 0:00:03]} 38. cxb5 {[%emt 0:00:03]} Rh4 {[%emt 0:00:02]} 39. Kg3 {[%emt 0:00:05]} Rbh8 {[%emt 0:00:03]} 40. Bg2 {[%emt 0:00:05]} Rf4 {[%emt 0:00:04]} 41. Rb1 {[%emt 0:00:02]} Rhh4 {[%emt 0:00:05]} 42. Bf3 {[%emt 0:00:03]} c4 {[%emt 0:00:04]} 43. b6 {[%emt 0:00:03]} cxb6 {[%emt 0:00:02]} 44. Rxb6+ {[%emt 0:00:02]} Kc5 {[%emt 0:00:01]} 45. Rc6+ {[%emt 0:00:02]} Kd4 {[%emt 0:00:03]} 46. d6 {[%emt 0:00:02]} Rh8 {[%emt 0:00:01]} 47. d7 {[%emt 0:00:04]} Rd8 {[%emt 0:00:02]} 48. Rd6+ {[%emt 0:00:02]} Kc5 {[%emt 0:00:02]} 49. Rd5+ {[%emt 0:00:02]} Kc6 {[%emt 0:00:02]} 50. Rxe5 {[%emt 0:00:03]} Rxf3+ {[%emt 0:00:02]} 51. Kxf3 {[%emt 0:00:02]} Rxd7 {[%emt 0:00:02]} 52. Re8 {[%emt 0:00:06]} Kc5 {[%emt 0:00:02]} 53. e5 {[%emt 0:00:05]} Kd5 {[%emt 0:00:18]} 54. Ke3 {[%emt 0:00:03]} c3 {[%emt 0:00:02]} 55. Kd3 {[%emt 0:00:03]} Rc7 {[%emt 0:00:02]} 56. Kc2 {[%emt 0:00:01]} Ke4 {[%emt 0:00:06]} 57. f6 {[%emt 0:00:03]} gxf6 {[%emt 0:00:02]} 58. gxf6 {[%emt 0:00:06]} Kf5 {[%emt 0:00:02]} 59. Re7 {[%emt 0:00:02]} Rc8 {[%emt 0:00:07]} 60. Rxf7 {[%emt 0:00:03]} Kxe5 {[%emt 0:00:01]} 61. Ra7 {[%emt 0:00:02]} Kxf6 {[%emt 0:00:03]} 62. Rxa5 {[%emt 0:00:02]} Ke6 {[%emt 0:00:02]} 63. Rb5 {[%emt 0:00:02]} Kd6 {[%emt 0:00:04]} 64. Rb3 {[%emt 0:00:02]} Rc4 {[%emt 0:00:03]} 65. a5 {[%emt 0:00:02]} Ra4 {[%emt 0:00:01]} 66. Kxc3 {[%emt 0:00:02]} Rxa5 {[%emt 0:00:02]} 67. Rb4 {[%emt 0:00:03]} Rc5+ {[%emt 0:00:01]} 68. Rc4 {[%emt 0:00:02]} Rxc4+ {[%emt 0:00:02]} 69. Kxc4 {[%emt 0:00:02]} Ke5 {[%emt 0:00:19]} 1/2-1/2

[Event "Djerba Festival Blitz 2025"]
[Site "Djerba"]
[Date "2025.02.21"]
[Round "3.5"]
[White "Boulrens, Ala Eddine"]
[Black "Kobalia, Mikhail"]
[Result "0-1"]
[ECO "B22"]
[WhiteElo "2121"]
[BlackElo "2538"]
[PlyCount "42"]
[EventDate "2025.02.15"]
[EventType "swiss"]
[EventCountry "TUN"]
[TimeControl "180+3"]

1. e4 {[%emt 0:00:04]} c5 {[%emt 0:00:03]} 2. c3 {[%emt 0:00:02]} Nf6 {[%emt 0:00:03]} 3. e5 {[%emt 0:00:01]} Nd5 {[%emt 0:00:02]} 4. d4 {[%emt 0:00:02]} cxd4 {[%emt 0:00:02]} 5. Nf3 {[%emt 0:00:02]} e6 {[%emt 0:00:01]} 6. cxd4 {[%emt 0:00:02]} d6 {[%emt 0:00:02]} 7. Bc4 {[%emt 0:00:03]} Nb6 {[%emt 0:00:02]} 8. Bb5+ {[%emt 0:00:06]} Bd7 {[%emt 0:00:02]} 9. Bxd7+ {[%emt 0:00:04]} Qxd7 {[%emt 0:00:02]} 10. O-O {[%emt 0:00:03]} Nc6 {[%emt 0:00:01]} 11. Nc3 {[%emt 0:00:03]} Be7 {[%emt 0:00:03]} 12. Qe2 {[%emt 0:00:03]} O-O {[%emt 0:00:03]} 13. Rd1 {[%emt 0:00:03]} Rfd8 {[%emt 0:00:14]} 14. Bf4 {[%emt 0:00:05]} d5 {[%emt 0:00:09]} 15. Rac1 {[%emt 0:00:14]} Rac8 {[%emt 0:00:02]} 16. h4 {[%emt 0:00:07]} Na5 {[%emt 0:00:17]} 17. Qd3 {[%emt 0:00:46]} Na4 {[%emt 0:00:06]} 18. b3 {[%emt 0:00:14]} Nb2 {[%emt 0:00:04]} 19. Qb5 {[%emt 0:00:37]} Nxd1 {[%emt 0:00:11]} 20. Qxa5 {[%emt 0:00:06]} Nxc3 {[%emt 0:00:08]} 21. Rxc3 {[%emt 0:00:01]} b6 {[%emt 0:00:05]} 0-1

[Event "Djerba Festival Blitz 2025"]
[Site "Djerba"]
[Date "2025.02.21"]
[Round "3.6"]
[White "Maurizzi, Marc`Andria"]
[Black "Papaux, Steve"]
[Result "1-0"]
[ECO "C48"]
[WhiteElo "2581"]
[BlackElo "2204"]
[PlyCount "113"]
[EventDate "2025.02.15"]
[EventType "swiss"]
[EventCountry "TUN"]
[TimeControl "180+3"]

1. e4 {[%emt 0:00:03]} e5 {[%emt 0:00:04]} 2. Nf3 {[%emt 0:00:01]} Nc6 {[%emt 0:00:02]} 3. Nc3 {[%emt 0:00:01]} Nf6 {[%emt 0:03:06]} 4. Bb5 {[%emt 0:00:05]} Nd4 {[%emt 0:00:00]} 5. O-O {[%emt 0:00:03]} c6 {[%emt 0:00:00]} 6. Bc4 {[%emt 0:00:05]} Nxf3+ {[%emt 0:00:00]} 7. Qxf3 {[%emt 0:00:01]} Be7 {[%emt 0:00:00]} 8. a4 {[%emt 0:00:03]} O-O {[%emt 0:00:00]} 9. d3 {[%emt 0:00:02]} d6 {[%emt 0:00:00]} 10. h3 {[%emt 0:00:01]} Be6 {[%emt 0:00:00]} 11. Qe2 {[%emt 0:00:05]} d5 {[%emt 0:00:00]} 12. Ba2 {[%emt 0:00:03]} d4 {[%emt 0:00:00]} 13. Bxe6 {[%emt 0:00:06]} fxe6 {[%emt 0:00:00]} 14. Nb1 {[%emt 0:00:02]} Nd7 {[%emt 0:00:00]} 15. Nd2 {[%emt 0:00:02]} Bg5 {[%emt 0:00:00]} 16. Nc4 {[%emt 0:00:06]} Bxc1 {[%emt 0:00:00]} 17. Raxc1 {[%emt 0:00:02]} b5 {[%emt 0:00:00]} 18. Nd2 {[%emt 0:00:11]} Qg5 {[%emt 0:00:00]} 19. Nf3 {[%emt 0:00:03]} Qh6 {[%emt 0:00:00]} 20. c3 {[%emt 0:00:04]} c5 {[%emt 0:00:00]} 21. axb5 {[%emt 0:00:02]} Rf4 {[%emt 0:00:00]} 22. Nh2 {[%emt 0:00:06]} Raf8 {[%emt 0:00:00]} 23. Ra1 {[%emt 0:00:03]} Ra8 {[%emt 0:00:00]} 24. Ra6 {[%emt 0:00:08]} Nb8 {[%emt 0:00:02]} 25. Ra4 {[%emt 0:00:12]} Rf7 {[%emt 0:00:09]} 26. b6 {[%emt 0:00:05]} Qf6 {[%emt 0:00:11]} 27. Ng4 {[%emt 0:00:02]} Qg5 {[%emt 0:00:11]} 28. h4 {[%emt 0:00:16]} Qxh4 {[%emt 0:00:10]} 29. Nxe5 {[%emt 0:00:01]} Rb7 {[%emt 0:00:03]} 30. cxd4 {[%emt 0:00:04]} cxd4 {[%emt 0:00:06]} 31. Qf3 {[%emt 0:00:11]} Qf6 {[%emt 0:00:07]} 32. Qxf6 {[%emt 0:00:03]} gxf6 {[%emt 0:00:02]} 33. Nc4 {[%emt 0:00:02]} Nd7 {[%emt 0:00:05]} 34. bxa7 {[%emt 0:00:23]} Rbxa7 {[%emt 0:00:02]} 35. Rxa7 {[%emt 0:00:03]} Rxa7 {[%emt 0:00:02]} 36. b4 {[%emt 0:00:02]} Rb7 {[%emt 0:00:03]} 37. Rb1 {[%emt 0:00:03]} Nc5 {[%emt 0:00:09]} 38. Nd6 {[%emt 0:00:33]} Rb6 {[%emt 0:00:02]} 39. Nc8 {[%emt 0:00:03]} Rb7 {[%emt 0:00:05]} 40. b5 {[%emt 0:00:06]} Nxd3 {[%emt 0:00:04]} 41. b6 {[%emt 0:00:03]} Nc5 {[%emt 0:00:03]} 42. Nd6 {[%emt 0:00:02]} Rd7 {[%emt 0:00:02]} 43. b7 {[%emt 0:00:02]} Nxb7 {[%emt 0:00:02]} 44. Nxb7 {[%emt 0:00:01]} d3 {[%emt 0:00:02]} 45. Nc5 {[%emt 0:00:05]} Rd4 {[%emt 0:00:02]} 46. Rd1 {[%emt 0:00:05]} Rc4 {[%emt 0:00:06]} 47. Nxe6 {[%emt 0:00:04]} Rxe4 {[%emt 0:00:05]} 48. Nc5 {[%emt 0:00:02]} Re7 {[%emt 0:00:02]} 49. Nxd3 {[%emt 0:00:02]} Kg7 {[%emt 0:00:03]} 50. g3 {[%emt 0:00:02]} Ra7 {[%emt 0:00:02]} 51. Kg2 {[%emt 0:00:01]} Ra3 {[%emt 0:00:02]} 52. Nf4 {[%emt 0:00:02]} f5 {[%emt 0:00:04]} 53. Rd6 {[%emt 0:00:03]} Ra4 {[%emt 0:00:04]} 54. Nh5+ {[%emt 0:00:02]} Kg8 {[%emt 0:00:04]} 55. Rf6 {[%emt 0:00:03]} Ra5 {[%emt 0:00:02]} 56. Kh3 {[%emt 0:00:03]} f4 {[%emt 0:00:03]} 57. Nxf4 {[%emt 0:00:02]} 1-0

[Event "Djerba Festival Blitz 2025"]
[Site "Djerba"]
[Date "2025.02.21"]
[Round "3.7"]
[White "Kakavand, Ramtin"]
[Black "Oro, Faustino"]
[Result "0-1"]
[ECO "B51"]
[WhiteElo "2106"]
[BlackElo "2447"]
[PlyCount "164"]
[EventDate "2025.02.15"]
[EventType "swiss"]
[EventCountry "TUN"]
[TimeControl "180+3"]

1. e4 {[%emt 0:00:04]} c5 {[%emt 0:00:03]} 2. Nf3 {[%emt 0:00:02]} d6 {[%emt 0:00:01]} 3. Bb5+ {[%emt 0:00:02]} Nd7 {[%emt 0:00:04]} 4. a4 {[%emt 0:00:02]} Ngf6 {[%emt 0:00:03]} 5. Nc3 {[%emt 0:00:02]} e6 {[%emt 0:00:05]} 6. d4 {[%emt 0:00:02]} cxd4 {[%emt 0:00:02]} 7. Qxd4 {[%emt 0:00:02]} Be7 {[%emt 0:00:03]} 8. O-O {[%emt 0:00:03]} O-O {[%emt 0:00:02]} 9. Re1 {[%emt 0:00:02]} Qc7 {[%emt 0:00:04]} 10. h3 {[%emt 0:00:06]} Ne5 {[%emt 0:00:07]} 11. Be2 {[%emt 0:00:35]} Nc6 {[%emt 0:00:05]} 12. Qd1 {[%emt 0:00:05]} a6 {[%emt 0:00:02]} 13. Be3 {[%emt 0:00:04]} b6 {[%emt 0:00:07]} 14. Nd2 {[%emt 0:00:11]} Na5 {[%emt 0:00:17]} 15. Bd3 {[%emt 0:00:27]} Bb7 {[%emt 0:00:05]} 16. Qe2 {[%emt 0:00:02]} Nd7 {[%emt 0:00:05]} 17. Nb3 {[%emt 0:00:06]} Nc6 {[%emt 0:00:11]} 18. Rad1 {[%emt 0:00:18]} Nc5 {[%emt 0:00:07]} 19. Nd4 {[%emt 0:00:14]} Bf6 {[%emt 0:00:08]} 20. Nxc6 Bxc6 {[%emt 0:00:03]} 21. Bxc5 {[%emt 0:00:36]} bxc5 {[%emt 0:00:02]} 22. Qd2 {[%emt 0:00:02]} d5 {[%emt 0:00:43]} 23. exd5 {[%emt 0:00:15]} exd5 {[%emt 0:00:03]} 24. b3 {[%emt 0:00:07]} g6 {[%emt 0:00:06]} 25. Ne2 {[%emt 0:00:04]} c4 {[%emt 0:00:24]} 26. bxc4 {[%emt 0:00:06]} dxc4 {[%emt 0:00:01]} 27. Bxc4 {[%emt 0:00:02]} Bxa4 {[%emt 0:00:07]} 28. Bb3 {[%emt 0:00:05]} Bxb3 29. cxb3 {[%emt 0:00:02]} Be5 {[%emt 0:00:28]} 30. Rc1 {[%emt 0:00:13]} Qb7 {[%emt 0:00:04]} 31. Nc3 {[%emt 0:00:14]} Rad8 {[%emt 0:00:06]} 32. Qc2 {[%emt 0:00:08]} Bd4 {[%emt 0:00:03]} 33. Rcd1 {[%emt 0:00:03]} Qc6 {[%emt 0:00:09]} 34. Rd3 {[%emt 0:00:05]} Bb6 {[%emt 0:00:13]} 35. Red1 {[%emt 0:00:05]} Rxd3 {[%emt 0:00:04]} 36. Rxd3 {[%emt 0:00:03]} Re8 {[%emt 0:00:04]} 37. Qd1 {[%emt 0:00:08]} Qe6 {[%emt 0:00:06]} 38. Nd5 {[%emt 0:00:04]} Qe1+ {[%emt 0:00:03]} 39. Qxe1 {[%emt 0:00:02]} Rxe1+ {[%emt 0:00:02]} 40. Kh2 {[%emt 0:00:02]} Bxf2 {[%emt 0:00:02]} 41. Nf6+ {[%emt 0:00:05]} Kg7 {[%emt 0:00:03]} 42. Ng4 {[%emt 0:00:02]} Bc5 {[%emt 0:00:05]} 43. Rd5 {[%emt 0:00:04]} Bb6 {[%emt 0:00:05]} 44. Kg3 {[%emt 0:00:02]} h5 {[%emt 0:00:02]} 45. Nh2 {[%emt 0:00:06]} Bc7+ {[%emt 0:00:03]} 46. Kf2 {[%emt 0:00:02]} Rb1 {[%emt 0:00:03]} 47. Nf3 {[%emt 0:00:02]} Rxb3 {[%emt 0:00:02]} 48. Rd7 {[%emt 0:00:03]} Bf4 {[%emt 0:00:03]} 49. g3 {[%emt 0:00:02]} Rb2+ {[%emt 0:00:02]} 50. Kf1 {[%emt 0:00:02]} Bxg3 {[%emt 0:00:02]} 51. Ng5 {[%emt 0:00:02]} Rf2+ {[%emt 0:00:02]} 52. Kg1 {[%emt 0:00:02]} Rf5 {[%emt 0:00:02]} 53. Ne4 {[%emt 0:00:02]} Bb8 {[%emt 0:00:03]} 54. Rb7 {[%emt 0:00:02]} Be5 {[%emt 0:00:02]} 55. Kg2 {[%emt 0:00:06]} a5 {[%emt 0:00:01]} 56. Ra7 {[%emt 0:00:02]} Bd4 {[%emt 0:00:05]} 57. Rd7 {[%emt 0:00:03]} Bc5 {[%emt 0:00:06]} 58. Rc7 {[%emt 0:00:03]} Bb4 {[%emt 0:00:03]} 59. Ra7 {[%emt 0:00:03]} Re5 {[%emt 0:00:02]} 60. Kf3 {[%emt 0:00:01]} g5 {[%emt 0:00:05]} 61. Ng3 {[%emt 0:00:08]} Kg6 {[%emt 0:00:04]} 62. Ra6+ {[%emt 0:00:05]} f6 {[%emt 0:00:02]} 63. Ne4 {[%emt 0:00:02]} Rf5+ {[%emt 0:00:02]} 64. Ke2 {[%emt 0:00:02]} Rf4 {[%emt 0:00:04]} 65. Ke3 {[%emt 0:00:02]} Be1 {[%emt 0:00:09]} 66. Nd6 {[%emt 0:00:06]} Bf2+ {[%emt 0:00:04]} 67. Ke2 {[%emt 0:00:01]} Bc5 {[%emt 0:00:05]} 68. Nb7 {[%emt 0:00:03]} Bb4 {[%emt 0:00:04]} 69. Nxa5 {[%emt 0:00:03]} Bxa5 {[%emt 0:00:02]} 70. Rxa5 {[%emt 0:00:10]} g4 {[%emt 0:00:06]} 71. hxg4 {[%emt 0:00:00]} hxg4 {[%emt 0:00:02]} 72. Ke3 {[%emt 0:00:00]} Rf3+ {[%emt 0:00:02]} 73. Ke2 {[%emt 0:00:01]} f5 {[%emt 0:00:03]} 74. Ra8 {[%emt 0:00:03]} Rb3 {[%emt 0:00:03]} 75. Kf2 {[%emt 0:00:02]} Kg5 {[%emt 0:00:02]} 76. Ra4 {[%emt 0:00:03]} Rb2+ {[%emt 0:00:03]} 77. Kg1 {[%emt 0:00:06]} g3 {[%emt 0:00:02]} 78. Rc4 {[%emt 0:00:03]} f4 {[%emt 0:00:03]} 79. Rc8 {[%emt 0:00:04]} Kg4 {[%emt 0:00:02]} 80. Rc3 {[%emt 0:00:02]} Rb1+ {[%emt 0:00:02]} 81. Kg2 {[%emt 0:00:03]} f3+ {[%emt 0:00:04]} 82. Rxf3 {[%emt 0:00:04]} Rb2+ {[%emt 0:00:02]} 0-1